Cogmind - Beta 16 @@@ ROGUE MODE // 2025.11.29 @ 14:44:17 Player: Torako Result: Destroyed by KB-H67(j) with Overtuned Pulse Rifle Performance ------------- Evolutions (0) 0 Regions Visited (4) 800 Robots Destroyed (31) 155 Value Destroyed (541) 541 Prototype IDs (4) 80 Alien Tech Used (0) 0 Bonus (0) 0 TOTAL SCORE: 1576 Bonus ------- None Cogmind --------- Core Integrity 0/250 Matter 191/300 Energy 89/100 System Corruption 6% Temperature Warning (373) Movement Treading (225) Ox1 Location -9/Recycling Parts ------- > --- POWER (1) -------- (None) > --- PROPULSION (2) --- Advanced Treads Improved Aluminum Leg > --- UTILITY (2) ------ Large Storage Unit Targeting Computer > --- WEAPON (2) ------- Improved Medium Laser Autogun > --- INVENTORY (15) --- Ion Engine Improved Aluminum Leg Carbon-fiber Leg Improved Heat Sink Sensor Array Signal Interpreter Hardened Medium Armor Plating Autogun EMP Blaster Plasma Cutter Mining Claw Peak State ------------ > --- POWER ------------ Ion Engine > --- PROPULSION ------- Light Treads Advanced Treads > --- UTILITY ---------- Large Storage Unit Targeting Computer > --- WEAPON ----------- Improved Medium Laser Autogun > --- INVENTORY -------- Ion Engine Improved Aluminum Leg Improved Aluminum Leg Improved Aluminum Leg Carbon-fiber Leg Improved Heat Sink Sensor Array Signal Interpreter Hardened Medium Armor Plating Improved Medium Laser Autogun Autogun EMP Blaster Plasma Cutter Mining Claw [Rating: 15] Favorites ----------- Power Ion Engine Engine Ion Engine Propulsion Light Treads Treads Light Treads Leg Improved Aluminum Leg Utility Large Storage Unit Storage Large Storage Unit Processor Targeting Computer Weapon Improved Medium Laser Energy Gun Improved Medium Laser Energy Cannon Beam Cannon Ballistic Gun Autogun Slashing Weapon Mining Claw Build | -11 -10 -10 -10 -9 ------- Run | Yrd Mat Min Sub Rec Slots Evolved . | . . . . . Power . | . . . . . Propulsion . | . . . . . Utility . | . . . . . Weapon . | . . . . . Parts Attached 20 | 6 7 1 2 4 Power 1 | 1 . . . . Engine 1 | 1 . . . . Core . | . . . . . Reactor . | . . . . . Propulsion 6 | 2 . 1 1 2 Treads 4 | 2 . 1 1 . Leg 2 | . . . . 2 Wheel . | . . . . . Hover . | . . . . . Flight . | . . . . . Utility 3 | 1 2 . . . Device . | . . . . . Storage 2 | 1 1 . . . Processor 1 | . 1 . . . Hackware . | . . . . . Protection . | . . . . . Artifact . | . . . . . Weapon 10 | 2 5 . 1 2 Energy Gun 4 | . 3 . . 1 Energy Cannon 1 | . 1 . . . Ballistic Gun 4 | 2 . . 1 1 Ballistic Cannon . | . . . . . Launcher . | . . . . . Special Weapon . | . . . . . Impact Weapon . | . . . . . Slashing Weapon 1 | . 1 . . . Piercing Weapon . | . . . . . Special Melee Weapon . | . . . . . Unidentified Prototypes 1 | . 1 . . . Parts Lost 9 | . 1 1 2 5 Power 1 | . . . . 1 Propulsion 4 | . . 1 1 2 Utility . | . . . . . Weapon 4 | . 1 . 1 2 Highest Loss Streak 5 | . 1 1 2 5 To Critical Strikes . | . . . . . Average Backups 11 | 1 9 13 14 14 Power . | . 1 1 1 1 Propulsion 3 | . 3 4 4 3 Utility 2 | . . 2 4 4 Weapon 4 | . 4 5 4 4 Tool/Special . | . . . . . Unused Backups 15 | . 3 2 . 10 Power 1 | . . . . 1 Propulsion 5 | . 2 1 . 2 Utility 4 | . . . . 4 Weapon 4 | . 1 1 . 2 Tool/Special 1 | . . . . 1 Average Slot Usage (%) 98 | . 98 100 100 99 Engine 13 | . 14 14 14 13 Treads 27 | . 28 28 28 27 Storage 14 | . 14 14 14 14 Processor 13 | . 12 14 14 14 Energy Gun 17 | . 18 28 22 13 Energy Cannon 1 | . 3 . . . Ballistic Gun 8 | . 5 . 5 14 Peak Build Rating 15 | 6 13 14 14 15 Average Rating 12 | 5 10 13 13 14 On Entrance 9 | . 6 13 14 14 Avg Prop Armor Cover (%) . | . . . . . Naked Turns . | . . . . . Heaviest Build 31 | 13 31 31 31 31 Greatest Support 42 | 40 40 40 42 42 Greatest Overweight (x) . | . . . . . Average Overweight (x) . | . . . . . Largest Inventory Capacity 15 | 8 15 15 15 15 Average Capacity 14 | 7 14 15 15 15 Most Carried 15 | 4 15 15 15 15 Average Carried 11 | 1 9 13 14 14 Final Capacity 15 | 8 15 15 15 15 Final Carried 15 | 4 14 15 13 11 Class Distribution -------------------- 100% | Mutant Dominant Class ---------------- Mutant | -10/Materials Mutant | -10/Mines Mutant | -10/Subcaves Mutant | -9/Recycling Resources | -11 -10 -10 -10 -9 ----------- Run | Yrd Mat Min Sub Rec Matter Collected 432 | 205 156 27 44 . Remotely . | . . . . . Salvage Created 692 | . 470 46 106 70 Parts 55 | . 42 3 5 5 Haulers Intercepted . | . . . . . Recyclers Shooed . | . . . . . Parts Field Recycled . | . . . . . Retrieved Matter . | . . . . . Parts Self-Destructed 5 | . . . 5 . Prevented . | . . . . . Parts Restored . | . . . . . Kills | -11 -10 -10 -10 -9 ------- Run | Yrd Mat Min Sub Rec Combat Hostiles Destroyed 26 | . 18 3 4 1 Guns 23 | . 15 3 4 1 Cannons 3 | . 3 . . . Classes Destroyed 7 | . 5 . 1 1 Builder 1 | . 1 . . . Tunneler 1 | . 1 . . . Turret 2 | . . . 2 . Watcher 1 | . 1 . . . Swarmer 19 | . 12 3 4 . Grunt 6 | . 6 . . . Scrapper 1 | . . . . 1 Best Kill Streak 6 | . 6 3 6 1 Combat Bots Only 5 | . 5 3 4 1 Max Kills in Single Turn 2 | . 2 1 1 1 Gunslinging . | . . . . . Exploded . | . . . . . Melee . | . . . . . Uniques/NPCs Destroyed . | . . . . . Combat | -11 -10 -10 -10 -9 -------- Run | Yrd Mat Min Sub Rec Hostile Shots Fired 194 | . 70 20 73 31 Missed 52 | . 20 7 24 1 Hits 142 | . 50 13 49 30 Projectile 142 | . 50 13 49 30 Critical Strikes 6 | . 1 . . 5 Damage Taken 1572 | . 450 99 362 661 Core 272 | . 82 8 52 130 Absorbed by Shields . | . . . . . Core Remaining (%) 100 | 100 . . . . Volleys Fired 77 | . 41 7 18 11 Largest 2 | . 2 2 2 2 Hottest 112 | . 112 112 112 79 Shots Fired 154 | . 82 14 36 22 Gun 147 | . 75 14 36 22 Cannon 7 | . 7 . . . Launcher . | . . . . . Special . | . . . . . Kinetic 27 | . 7 . 6 14 Thermal 127 | . 75 14 30 8 Explosive . | . . . . . Electromagnetic . | . . . . . Robot Hit Streak 12 | . 3 3 8 12 Robot Miss Streak 4 | . 4 2 1 2 Penetration Max . | . . . . . Secondary Targets 8 | . 4 1 2 1 Max Gunslinging Chain 1 | . 1 1 1 1 Shots Hit Robots 82 | . 33 8 24 17 Core Hits 35 | . 21 3 8 3 Critical Kills . | . . . . . Critical Parts Destroyed . | . . . . . Critical Strikes 5 | . 5 . . . Burn 5 | . 5 . . . Melee Attacks 1 | . 1 . . . Impact . | . . . . . Slashing 1 | . 1 . . . Piercing . | . . . . . Sneak Attacks . | . . . . . Combat Hostiles . | . . . . . Follow-up Attacks . | . . . . . Damage Inflicted 1474 | . 658 137 406 273 Guns 1404 | . 588 137 406 273 Cannons 70 | . 70 . . . Explosions . | . . . . . Melee . | . . . . . Ramming . | . . . . . Kinetic 233 | . 10 . 53 170 Thermal 1241 | . 648 137 353 103 Explosive . | . . . . . Electromagnetic . | . . . . . Impact . | . . . . . Slashing . | . . . . . Piercing . | . . . . . Highest Corruption 6 | . 6 6 6 6 Average Corruption 5 | . 4 6 6 6 Corruption Purged . | . . . . . Corruption Blocked . | . . . . . Effects 37 | . 3 10 3 21 Message Errors 8 | . . 4 1 3 Matter Fused 8 | . 2 1 . 5 Heat Flow Errors 6 | . . . 2 4 Energy Discharges 9 | . . 4 . 5 Data Loss (minor) 3 | . 1 . . 2 Data Loss (major) 3 | . . 1 . 2 Overload Shots . | . . . . . Overflow Damage . | . . . . . Projectiles . | . . . . . Explosions . | . . . . . Melee . | . . . . . Knockbacks . | . . . . . Impact . | . . . . . Kinetic . | . . . . . Secondary . | . . . . . Self-Inflicted Damage . | . . . . . Shots . | . . . . . Rammed . | . . . . . Targets Rammed . | . . . . . Kicked . | . . . . . Crushed . | . . . . . Highest Temperature 408 | . 408 357 182 362 Average Temperature 124 | . 117 179 69 136 Received Heat Transfer 647 | . 60 . 102 485 Effects 2 | . 2 . . . Shutdowns 1 | . 1 . . . Energy Bleed 1 | . 1 . . . Siege Activations . | . . . . . Martial Activations . | . . . . . Shielding Activations . | . . . . . Robots Disrupted . | . . . . . Combat Hostiles . | . . . . . Robots Corrupted . | . . . . . Combat Hostiles . | . . . . . Parts Fried . | . . . . . Impact Corruptions . | . . . . . Robots Melted . | . . . . . Combat Hostiles . | . . . . . Parts Melted 1 | . 1 . . . Heat Transferred 2999 | . 1776 296 777 150 Parts Sabotaged . | . . . . . Parts Stolen . | . . . . . Parts Stripped . | . . . . . Power Chain Reactions . | . . . . . Alert | -11 -10 -10 -10 -9 ------- Run | Yrd Mat Min Sub Rec Maximum Alert Level 1 | . 1 . . . Low Security (%) 95 | 100 90 100 . 100 Level 1 4 | . 9 . . . Level 2 . | . . . . . Level 3 . | . . . . . Level 4 . | . . . . . Level 5 . | . . . . . High Security . | . . . . . Max Security . | . . . . . Peak Influence 230 | . 230 128 . 106 Initial 106 | . . 78 . 106 Average 51 | . 86 73 . 17 Influence Increases 839 | . 476 70 270 23 Destroy 0b10 Robot/C 540 | . 360 60 120 . Destroy 0b10 Robot/NC 15 | . 15 . . . Destroy Leader 72 | . 62 10 . . Successful Hack 44 | . 21 . . 23 Disable Machine 15 | . 15 . . . Destroy Structure 3 | . 3 . . . Lose Combat Pursuer 150 | . . . 150 . Influence Decreases 839 | . 276 262 55 246 Entered New Map 244 | . . 122 5 117 Time Decay 555 | . 266 130 30 129 Lost Part 40 | . 10 10 20 . Squads Dispatched 5 | . 4 1 . . Investigation 2 | . 1 1 . . Extermination . | . . . . . Reinforcement 3 | . 3 . . . Assault . | . . . . . Garrison . | . . . . . Intercept . | . . . . . Searches Triggered . | . . . . . Construction Impeded . | . . . . . Haulers Reinforced . | . . . . . Active Scanning Responses . | . . . . . Cargo Convoy Interrupts . | . . . . . Stealth | -11 -10 -10 -10 -9 --------- Run | Yrd Mat Min Sub Rec Distress Signals 2 | . 2 . . . Communications Jammed . | . . . . . Distress Signals . | . . . . . Times Spotted 38 | . 24 3 8 3 Peak Tracking Total 6 | . 5 3 6 4 Tactical Retreats 3 | . . . 3 . Traps | -11 -10 -10 -10 -9 ------- Run | Yrd Mat Min Sub Rec Traps Triggered 5 | . 5 . . . Indirectly . | . . . . . Trap Hack Attempts . | . . . . . Triggered . | . . . . . Disarmed . | . . . . . Reprogrammed . | . . . . . Reused . | . . . . . Traps Extracted . | . . . . . Installed . | . . . . . Triggered . | . . . . . Machines | -11 -10 -10 -10 -9 ---------- Run | Yrd Mat Min Sub Rec Machines Disabled 4 | . 1 . 2 1 Max in Single Turn 1 | . 1 . 1 1 Machines Repaired . | . . . . . Machines Dismantled . | . . . . . Machines Sabotaged . | . . . . . Overloaded Fab Kills . | . . . . . Hacking | -11 -10 -10 -10 -9 --------- Run | Yrd Mat Min Sub Rec Machines Accessed 15 | . 6 1 . 8 Terminals 11 | . 5 . . 6 Fabricators . | . . . . . Repair Stations . | . . . . . Recycling Units 2 | . 1 . . 1 Scanalyzers . | . . . . . Garrison Access . | . . . . . Total Hacks 38 | . 12 1 . 25 Successful 25 | . 7 1 . 17 Failed 13 | . 5 . . 8 Catastrophic 3 | . 2 . . 1 Database Lockouts . | . . . . . Manual 20 | . 8 . . 12 Terminals 27 | . 10 . . 17 Fabricators . | . . . . . Repair Stations . | . . . . . Recycling Units 3 | . 2 . . 1 Scanalyzers . | . . . . . Garrison Access . | . . . . . Terminal Hacks 17 | . 3 1 . 13 Record 6 | . . . . 6 Part Schematic 1 | . . . . 1 Prototype ID Bank 2 | . 1 . . 1 Open Door 1 | . . 1 . . Branch Access Points 1 | . . . . 1 Terminal Index 2 | . 1 . . 1 Zone Layout 2 | . 1 . . 1 Release Object 2 | . . . . 2 Fabricator Hacks . | . . . . . Repair Station Hacks . | . . . . . Recycling Unit Hacks 2 | . 1 . . 1 Report Inventory 2 | . 1 . . 1 Scanalyzer . | . . . . . Garrison Access Hacks . | . . . . . Unauthorized Hacks 6 | . 3 . . 3 Terminals 5 | . 2 . . 3 Botnet 4 | . 1 . . 3 Disrupt 1 | . 1 . . . Fabricators . | . . . . . Repair Stations . | . . . . . Recycling Units 1 | . 1 . . . Recyclers 1 | . 1 . . . Scanalyzers . | . . . . . Garrison Access . | . . . . . Data Cores Recovered . | . . . . . Used . | . . . . . Hacking Detections 11 | . 5 . . 6 Full Trace Events . | . . . . . Feedback Events . | . . . . . Feedback Blocked . | . . . . . Robot Schematics Acquired . | . . . . . Robots Built . | . . . . . Authchips . | . . . . . Time . | . . . . . Total Robot Build Rating . | . . . . . Part Schematics Acquired 1 | . . . . 1 Parts Built . | . . . . . Authchips . | . . . . . Time . | . . . . . Total Part Build Rating . | . . . . . Part Studies Acquired . | . . . . . Parts Repaired . | . . . . . Time . | . . . . . Parts Recycled . | . . . . . Recycled Matter . | . . . . . Retrieved Matter . | . . . . . Retrieved Components . | . . . . . Parts Scanalyzed . | . . . . . Part Schematics Acquired . | . . . . . Parts Damaged . | . . . . . Bothacking | -11 -10 -10 -10 -9 ------------ Run | Yrd Mat Min Sub Rec Used RIF Installer . | . . . . . Robots Hacked . | . . . . . Non-combat . | . . . . . Combat . | . . . . . Robot Hacks Applied . | . . . . . Relay Couplers Released . | . . . . . Fabnet Peak Effective % . | . . . . . Robots Rewired . | . . . . . Allies Hacked . | . . . . . Hacks Repelled . | . . . . . Allies | -11 -10 -10 -10 -9 -------- Run | Yrd Mat Min Sub Rec Total Allies . | . . . . . Largest Group . | . . . . . Highest-Rated Group . | . . . . . Highest-Rated Ally . | . . . . . Total Orders . | . . . . . Ally Attacks . | . . . . . Total Damage . | . . . . . Kills . | . . . . . Allies Corrupted . | . . . . . Allies Melted . | . . . . . Intel | -11 -10 -10 -10 -9 ------- Run | Yrd Mat Min Sub Rec Active Infowar (turns) . | . . . . . Robot Analysis Total . | . . . . . Derelict Logs Recovered 1 | . . 1 . . Drone Launches . | . . . . . Drone Recoveries . | . . . . . Exploration | -11 -10 -10 -10 -9 ------------- Run | Yrd Mat Min Sub Rec Turns Passed 2060 | 113 805 262 74 806 Spaces Moved 1123 | 64 396 147 13 503 Core 5 | 5 . . . . Treads 1118 | 59 396 147 13 503 Legs . | . . . . . Wheels . | . . . . . Hover . | . . . . . Flight . | . . . . . Fastest Speed 50 | 50 160 160 152 152 Average Speed 155 | 151 160 160 154 152 Slowest Speed 160 | 160 160 160 160 152 Overloaded Moves . | . . . . . Propulsion Burnouts . | . . . . . Robots Hopped . | . . . . . Potential Cave-ins . | . . . . . Cave-ins Triggered . | . . . . . Exploration Rate (%) 39 | 4 78 34 1 82 Regions Visited 4 Branch Regions 3 Pre-discovered Areas 1 | . . 1 . . Known Exits Taken . | . . . . . Unknown Exits Taken 4 | 1 1 1 1 . Scrap Searched 1 | . . 1 . . Spaces Dug . | . . . . . Terrain Destroyed . | . . . . . Melee . | . . . . . Projectile . | . . . . . AOE . | . . . . . Terrain Rammed . | . . . . . Walls Destroyed . | . . . . . Machines Disabled . | . . . . . Actions | -11 -10 -10 -10 -9 --------- Run | Yrd Mat Min Sub Rec Total 1281 | 77 486 161 32 525 Wait 26 | 4 16 1 . 5 Move 1119 | 63 395 146 12 503 Hop . | . . . . . Pick Up 24 | 4 14 4 . 2 Fast Attach 11 | 6 5 . . . Attach 8 | . 1 1 2 4 Detach 4 | . 4 . . . Swap 2 | . 2 . . . Drop 9 | . 7 2 . . Fire 77 | . 41 7 18 11 Melee 1 | . 1 . . . Ram . | . . . . . Kick . | . . . . . Crush . | . . . . . Escape Stasis . | . . . . . Rewire . | . . . . . Trap . | . . . . . Miscellaneous . | . . . . . Route ------- -11/Scrapyard -10/Materials (discovered 3 exits: [*Mat x2] / *Min) -10/Mines -10/Subcaves -9/Recycling (discovered 1 exit: [*Fac]) History --------- Turn | Location | Event 12 | -11/Scrapyard | Discovered new exit (range 15) 114 | -11/Scrapyard | Entered Materials 301 | -10/Materials | Build established: Mutant 595 | -10/Materials | Discovered new exit (range 7) 841 | -10/Materials | Discovered new exit (range 8) 878 | -10/Materials | Discovered new exit (range 16) 919 | -10/Materials | Entered Mines 1054 | -10/Mines | Learned location of Storage (-9) 1089 | -10/Mines | Met a Derelict shopkeep closing up shop 1162 | -10/Mines | Discovered new exit (range 13) 1181 | -10/Mines | Entered Subcaves 1182 | -10/Subcaves | Approached by a straggling Scientist 1184 | -10/Subcaves | Discovered new exit (range 10) 1198 | -10/Subcaves | Core integrity fell below 50% 1255 | -10/Subcaves | Entered Recycling 1465 | -9/Recycling | Discovered new exit (range 14) 1994 | -9/Recycling | Scanned before Scraplab entrance 2019 | -9/Recycling | Entered Scraplab 2024 | -9/Recycling | Angered Scraplab inhabitants 2053 | -9/Recycling | Core integrity fell below 20% 2061 | -9/Recycling | Destroyed by KB-H67(j) with Overtuned Pulse Rifle Last Messages --------------- Ion Engine destroyed. GS-7J7(j): "Defend the Scraplab!" Lgt. Treads destroyed. Prototype Device integrity failing. Critical hit (Burn: +50). Imp. Medium Laser destroyed. Prototype Device integrity failing. WG-QDW(j) destroyed. Switching to secondary target: GS-7J7(j). Machine disabled. Autogun destroyed. Prototype Device integrity failing. Imp. Aluminum Leg destroyed. Critical hit (Burn: +50). GS-7J7(j) heat short circuits Mak. Salvage Targeting Computer. Critical hit (Burn: +50). EREJRTYP%SD3XYTRGQ7GLV Prototype Device integrity failing. Map ----- +----------------------------------------------------+ | ?????# #???????????????? | | ?????# #???????????????? | | ?????# #???????????????? | | ###### ####???????????????? | | #??????????????????? | | ####### ##??????????????????? | | ??????# #???????????????????? | | #######+####????????????????? | | #????????????????? | | #????????????????? | | #????????????????? | | #????????????????? | | #????????????????? | | #?######?????????? | | #?# #?????????? | | ########+###?# #??###????? | | ??????# #### #### ##???? | | ??????# + # #???? | | ??????# #### ##### #???? | | ??????## ##??# #???# #???? | | ???????# #???# #???# #???? | | ???????# #???######???# #???? | | ???????# #????????#####j####? | | ???????# #????????#""!%= "#? | | ???????# #????????#"&!c= "#? | | ???????# #????????#" !@"#? | | ???????# #????????#"" jX"#? | | ######## #????????#"& "#? | | #????????# c ""#? | | ## #????????#"X "#? | | ## """ #????????#" ###? | | #T """ #????????# "" #??? | | ## """ #????????# """ ??? | | #????????##?#####??? | | #??????????????????? | | ######## #??????????????????? | | ???????# #??????????????????? | | ??######+#######????????????? | | ??# #????????????? | | ??# """ """ #????????????? | | ??# """ """ #????????????? | | ??# """ """ #????????????? | | ??# #????????????? | | ##########+#####????????????? | | #????????????????? | | #????????????????? | | ############????????????????? | | ????????????????????????????? | | ????????????????????????????? | | | +----------------------------------------------------+ Best States ------------- Heat Dissipation 25 Energy Generation 10 Energy Capacity 250 Matter Stores 300 Matter Capacity 300 Sight Range 16 Terrain Scan Density 10 Evasion (%) 40 Targeting Accuracy 5 Recoil Reduction 2 Item Schematics ----------------- System Restoration Module | -9/Recycling | Hacked Robot Schematics ------------------ None Fabricated ------------ Nothing Repaired ---------- Nothing Studied --------- None Alien Tech Used ----------------- None Achievements -------------- None Challenges ------------ None Game ------ Seed LaunchSchematicMatterbank Manual? 0 Play Time 00:16:14 Cumulative 359.6 hours Start 2025.11.29 @ 14:27:54 End 2025.11.29 @ 14:44:17 Sessions 1 Manual Loads 0 Difficulty Rogue Special Mode None Game No. 355 Rogue 355 Adventurer 0 Explorer 0 Win Type - Total 26 Types 19/0/4/3/0/0/0/0/0/0 Lore% 69 Gallery% 76 Achievement% 49 Wizard Run 0 Options --------- Layout 0 ASCII 0 Keyboard 1 Movement Numpad Keybinds 0 Fullscreen 1 Font 18/SmallcapsGlow Map View 76x50 Zoom Use 0% Tactical HUD 1 Map Filters NONE Filters NONE Steam 1 RUN: a273c75f-32ee-4c04-9509-b7c3b31ec491